fUST/lending_fUST_20250713
["ID","MTS","AMOUNT","RATE_DAILY","PERIOD"]
[371734602,1752407461035,-460.0,0.0002,2]
[371734603,1752407461045,-2262.14,0.0002,2]
[371734604,1752407461055,-548.88,0.0002,2]
[371734605,1752407461064,-1309.92,0.0002,2]
[371734606,1752407461073,-460.0,0.0002,2]
[371734607,1752407461083,-955.79,0.0002,2]
[371734608,1752407461093,-1127.57,0.0002,2]
[371734609,1752407461206,-460.0,0.0002,2]
[371734610,1752407461217,-849.15,0.0002,2]
[371734611,1752407461227,-500.48,0.0002,2]
[371734612,1752407461237,-700.08,0.0002,2]
[371734613,1752407461247,-460.0,0.0002,2]
[371734614,1752407461257,-460.0,0.0002,2]
[371734615,1752407461267,-3031.54,0.0002,2]
[371734616,1752407461277,-578.13,0.0002,2]
[371734617,1752407461287,-460.0,0.0002,2]
[371734618,1752407461297,-540.94,0.0002,2]
[371734619,1752407461307,-506.52,0.0002,2]
[371734620,1752407461318,-1316.63,0.0002,2]
[371734621,1752407461328,-1300.53,0.0002,2]
[371734622,1752407461339,-671.75,0.0002,2]
[371734623,1752407461349,-525.32257468,0.0002,2]
[371734624,1752407461359,-460.0,0.0002,2]
[371734625,1752407461371,-517.5,0.0002,2]
[371734626,1752407461382,-1769.22730103,0.0002,4]
[371734627,1752407461391,-1032.53,0.0002,2]
[371734628,1752407461401,-460.0,0.0002,2]
[371734629,1752407461411,-1550.69,0.0002,2]
[371734630,1752407461420,-748.97,0.0002,2]
[371734631,1752407461429,-460.0,0.0002,2]
[371734632,1752407461438,-833.7,0.0002,2]
[371734633,1752407461447,-240.24514543,0.00020016,2]
[371734634,1752407461457,-4933.13375574,0.00020107,2]
[371734635,1752407461466,-532.370635,0.00020187,2]
[371734636,1752407461477,-151.0,0.00020272,2]
[371734637,1752407461486,-151.0,0.00020272,2]
[371734638,1752407461495,-151.0,0.00020273,2]
[371734639,1752407461505,-248.27199,0.00020273,2]
[371734640,1752407461514,-151.0,0.00020273,2]
[371734641,1752407461524,-151.0,0.00020273,2]
[371734642,1752407461533,-151.0,0.00020273,2]
[371734643,1752407461543,-320.921408,0.00020273,2]
[371734644,1752407461552,-320.921408,0.00020273,2]
[371734645,1752407461561,-460.0,0.00020273,2]
[371734646,1752407461570,-460.0,0.00020273,2]
[371734647,1752407461580,-495.85,0.00020273,2]
[371734648,1752407461590,-235.08701847,0.00020273,2]
[371734649,1752407461600,-483.55,0.00020273,2]
[371734650,1752407461611,-731.2,0.00020273,2]
[371734651,1752407461621,-436.42,0.00020273,2]
[371734652,1752407461631,-714.42,0.00020273,2]
[371734653,1752407461640,-554.02,0.00020273,2]
[371734654,1752407461649,-596.85,0.00020273,2]
[371734655,1752407461659,-460.0,0.00020273,2]
[371734656,1752407461668,-2829.27,0.00020273,2]
[371734657,1752407461678,-2270.21,0.00020273,2]
[371734658,1752407461687,-460.0,0.00020273,2]
[371734659,1752407461696,-587.27,0.00020273,2]
[371734660,1752407461706,-565.36,0.00020273,2]
[371734661,1752407461715,-1536.42,0.00020273,2]
[371734662,1752407461725,-460.0,0.00020273,2]
[371734663,1752407461734,-704.31,0.00020273,2]
[371734664,1752407461744,-489.16,0.00020273,2]
[371734665,1752407461753,-498.33,0.00020273,2]
[371734666,1752407461763,-764.91,0.00020273,2]
[371734667,1752407461773,-2968.39,0.00020273,2]
[371734668,1752407461782,-432.39226932,0.00020273,2]
[371734669,1752407461792,-2262.14,0.00020273,2]
[371734670,1752407461802,-548.88,0.00020273,2]
[371734671,1752407461812,-1309.92,0.00020273,2]
[371734672,1752407461821,-460.0,0.00020273,2]
[371734673,1752407461831,-955.79,0.00020273,2]
[371734674,1752407461841,-1127.57,0.00020273,2]
[371734675,1752407461853,-156.31843284,0.00020273,2]
[371734676,1752407461863,-849.15,0.00020273,2]
[371734677,1752407461874,-500.48,0.00020273,2]
[371734678,1752407461885,-700.08,0.00020273,2]
[371734679,1752407461896,-460.0,0.00020273,2]
[371734680,1752407461906,-460.0,0.00020273,2]
[371734681,1752407461916,-3031.54,0.00020273,2]
[371734682,1752407461926,-578.13,0.00020273,2]
[371734683,1752407461935,-460.0,0.00020273,2]
[371734684,1752407461945,-540.94,0.00020273,2]
[371734685,1752407461955,-506.52,0.00020273,2]
[371734686,1752407461964,-1316.63,0.00020273,2]
[371734687,1752407461973,-1300.53,0.00020273,2]
[371734688,1752407461984,-671.75,0.00020273,2]
[371734689,1752407461995,-460.0,0.00020273,2]
[371734690,1752407462004,-517.5,0.00020273,2]
[371734691,1752407462014,-1032.53,0.00020273,2]
[371734692,1752407462024,-460.0,0.00020273,2]
[371734693,1752407462033,-1550.69,0.00020273,2]
[371734694,1752407462042,-748.97,0.00020273,2]
[371734695,1752407462052,-257.12883024,0.00020273,2]
[371734696,1752407462061,-833.7,0.00020273,2]
[371734697,1752407462070,-151.0,0.00020296,2]
[371734698,1752407462080,-460.0,0.00020309,2]
[371734699,1752407462089,-4933.13375574,0.00020383,3]
[371734700,1752407462099,-770.0,0.00020426,2]
[371734701,1752407462108,-1300.0,0.00020516,2]
[371734702,1752407462119,-770.0,0.00020524,2]
[371734703,1752407462128,-770.0,0.00020532,2]
[371734704,1752407462138,-151.0,0.00020547,2]
[371734705,1752407462148,-460.0,0.00020547,2]
[371734706,1752407462158,-460.0,0.00020547,2]
[371734707,1752407462168,-495.85,0.00020547,2]
[371734708,1752407462179,-731.2,0.00020547,2]
[371734709,1752407462188,-714.42,0.00020547,2]
[371734710,1752407462198,-554.02,0.00020547,2]
[371734711,1752407462207,-596.85,0.00020547,2]
[371734712,1752407462217,-151.0,0.00020547,2]
[371734713,1752407462227,-460.0,0.00020547,2]
[371734714,1752407462238,-2829.27,0.00020547,2]
[371734715,1752407462248,-2270.21,0.00020547,2]
[371734716,1752407462258,-460.0,0.00020547,2]
[371734717,1752407462268,-587.27,0.00020547,2]
[371734718,1752407462278,-565.36,0.00020547,2]
[371734719,1752407462287,-1536.42,0.00020547,2]
[371734720,1752407462297,-460.0,0.00020547,2]
[371734721,1752407462307,-704.31,0.00020547,2]
[371734722,1752407462317,-489.16,0.00020547,2]
[371734723,1752407462326,-498.33,0.00020547,2]
[371734724,1752407462336,-764.91,0.00020547,2]
[371734725,1752407462345,-2968.39,0.00020547,2]
[371734726,1752407462355,-2262.14,0.00020547,2]
[371734727,1752407462364,-548.88,0.00020547,2]
[371734728,1752407462374,-1309.92,0.00020547,2]
[371734729,1752407462383,-460.0,0.00020547,2]
[371734730,1752407462393,-955.79,0.00020547,2]
[371734731,1752407462403,-1127.57,0.00020547,2]
[371734732,1752407462413,-849.15,0.00020547,2]
[371734733,1752407462422,-500.48,0.00020547,2]
[371734734,1752407462433,-700.08,0.00020547,2]
[371734735,1752407462442,-460.0,0.00020547,2]
[371734736,1752407462452,-460.0,0.00020547,2]
[371734737,1752407462461,-3031.54,0.00020547,2]
[371734738,1752407462470,-578.13,0.00020547,2]
[371734739,1752407462479,-460.0,0.00020547,2]
[371734740,1752407462488,-540.94,0.00020547,2]
[371734741,1752407462498,-506.52,0.00020547,2]
[371734742,1752407462507,-1316.63,0.00020547,2]
[371734743,1752407462517,-1300.53,0.00020547,2]
[371734744,1752407462526,-671.75,0.00020547,2]
[371734745,1752407462535,-460.0,0.00020547,2]
[371734746,1752407462545,-517.5,0.00020547,2]
[371734747,1752407462554,-1032.53,0.00020547,2]
[371734748,1752407462563,-460.0,0.00020547,2]
[371734749,1752407462572,-748.97,0.00020547,2]
[371734750,1752407462582,-1550.69,0.00020547,2]
[371734751,1752407462592,-833.7,0.00020547,2]
[371734752,1752407462603,-770.0,0.00020649,2]
[371734753,1752407462612,-4933.13375574,0.00020659,3]
[371734754,1752407462621,-305.058,0.00020663,2]
[371734755,1752407462631,-560.347522,0.00020673,4]
[371734756,1752407462640,-160.0,0.000207,3]
[371734757,1752407462650,-12598.31844336,0.000207,3]
[371734758,1752407462661,-214.29528141,0.000207,3]
[371734759,1752407462671,-275.434605,0.00020821,2]
[371734760,1752407462680,-275.434605,0.00020821,2]
[371734761,1752407462690,-2360.16801685,0.00020821,2]
[371734762,1752407462700,-1389.82012377,0.00020821,2]
[371734763,1752407462710,-460.0,0.00020821,2]
[371734764,1752407462719,-460.0,0.00020821,2]
[371734765,1752407462729,-495.85,0.00020821,2]
[371734766,1752407462738,-731.2,0.00020821,2]
[371734767,1752407462748,-3057.5859545,0.00020821,2]
[371734768,1752407462757,-2008.14156234,0.00020821,2]
[371734769,1752407462767,-714.42,0.00020821,2]
[371734770,1752407462776,-554.02,0.00020821,2]
[371734771,1752407462785,-596.85,0.00020821,2]
[371734772,1752407462794,-460.0,0.00020821,2]
[371734773,1752407462803,-2829.27,0.00020821,2]
[371734774,1752407462812,-2270.21,0.00020821,2]
[371734775,1752407462821,-460.0,0.00020821,2]
[371734776,1752407462830,-587.27,0.00020821,2]
[371734777,1752407462839,-565.36,0.00020821,2]
[371734778,1752407462852,-1536.42,0.00020821,2]
[371734779,1752407462863,-460.0,0.00020821,2]
[371734780,1752407462873,-704.31,0.00020821,2]
[371734781,1752407462884,-489.16,0.00020821,2]
[371734782,1752407462896,-498.33,0.00020821,2]
[371734783,1752407462905,-246.529174,0.00020821,2]
[371734784,1752407462999,-246.529174,0.00020821,2]
[371734785,1752407463009,-764.91,0.00020821,2]
[371734786,1752407463019,-2968.39,0.00020821,2]
[371734787,1752407463030,-2262.14,0.00020821,2]
[371734788,1752407463040,-548.88,0.00020821,2]
[371734789,1752407463052,-1309.92,0.00020821,2]
[371734790,1752407463062,-461.18811205,0.00020821,2]
[371734791,1752407463073,-955.79,0.00020821,2]
[371734792,1752407463083,-1127.57,0.00020821,2]
[371734793,1752407463093,-849.15,0.00020821,2]
[371734794,1752407463104,-500.48,0.00020821,2]
[371734795,1752407463113,-700.08,0.00020821,2]
[371734796,1752407463123,-460.0,0.00020821,2]
[371734797,1752407463134,-460.0,0.00020821,2]
[371734798,1752407463147,-3031.54,0.00020821,2]
[371734799,1752407463157,-578.13,0.00020821,2]
[371734800,1752407463167,-460.0,0.00020821,2]
[371734801,1752407463176,-540.94,0.00020821,2]
[371734802,1752407463186,-506.52,0.00020821,2]
[371734803,1752407463196,-1316.63,0.00020821,2]
[371734804,1752407463205,-1300.53,0.00020821,2]
[371734805,1752407463215,-671.75,0.00020821,2]
[371734806,1752407463225,-460.0,0.00020821,2]
[371734807,1752407463234,-517.5,0.00020821,2]
[371734808,1752407463244,-1032.53,0.00020821,2]
[371734809,1752407463253,-460.0,0.00020821,2]
[371734810,1752407463263,-748.97,0.00020821,2]
[371734811,1752407463272,-1550.69,0.00020821,2]
[371734812,1752407463282,-833.7,0.00020821,2]
[371734813,1752407463291,-320.921408,0.00020829,2]
[371734814,1752407463301,-320.921408,0.00020829,2]
[371734815,1752407463310,-560.0,0.00020857,2]
[371734816,1752407463320,-770.0,0.00020892,2]
[371734817,1752407463329,-17379.31,0.000209,2]
[371734818,1752407463340,-151.0,0.000209,4]
[371734819,1752407463349,-4933.13375574,0.00020934,4]
[371734820,1752407463358,-151.0,0.00020935,2]
[371734821,1752407463368,-770.0,0.00020949,2]
[371734822,1752407463378,-770.0,0.00020966,2]
[371734823,1752407463387,-770.0,0.00020968,2]
[371734824,1752407463396,-557.0,0.00020991,2]
[371734825,1752407463407,-770.0,0.00020999,2]
[371734826,1752407463417,-557.0,0.00021022,2]
[371734827,1752407463426,-557.0,0.00021042,2]
[371734828,1752407463436,-557.0,0.00021081,2]
[371734829,1752407463445,-1810.78010026,0.00021085,2]
[371734830,1752407463454,-151.0,0.00021095,2]
[371734831,1752407463465,-460.0,0.00021095,2]
[371734832,1752407463475,-460.0,0.00021095,2]
[371734833,1752407463485,-495.85,0.00021095,2]
[371734834,1752407463495,-151.0,0.00021095,2]
[371734835,1752407463505,-229.246399,0.00021095,2]
[371734836,1752407463514,-151.0,0.00021095,2]
[371734837,1752407463524,-151.0,0.00021095,2]
[371734838,1752407463539,-731.2,0.00021095,2]
[371734839,1752407463559,-714.42,0.00021095,2]
[371734840,1752407463580,-554.02,0.00021095,2]
[371734841,1752407463592,-596.85,0.00021095,2]
[371734842,1752407463602,-174.194882,0.00021095,2]
[371734843,1752407463612,-460.0,0.00021095,2]
[371734844,1752407463622,-174.194882,0.00021095,2]
[371734845,1752407463631,-2829.27,0.00021095,2]
[371734846,1752407463641,-2270.21,0.00021095,2]
[371734847,1752407463652,-460.0,0.00021095,2]
[371734848,1752407463662,-587.27,0.00021095,2]
[371734849,1752407463672,-565.36,0.00021095,2]
[371734850,1752407463683,-1536.42,0.00021095,2]
[371734851,1752407463692,-151.0,0.00021095,2]
[371734852,1752407463702,-460.0,0.00021095,2]
[371734853,1752407463712,-704.31,0.00021095,2]
[371734854,1752407463723,-489.16,0.00021095,2]
[371734855,1752407463733,-498.33,0.00021095,2]
[371734856,1752407463745,-764.91,0.00021095,2]
[371734857,1752407463755,-2968.39,0.00021095,2]
[371734858,1752407463765,-2262.14,0.00021095,2]
[371734859,1752407463775,-548.88,0.00021095,2]
[371734860,1752407463784,-1309.92,0.00021095,2]
[371734861,1752407463794,-955.79,0.00021095,2]
[371734862,1752407463804,-1127.57,0.00021095,2]
[371734863,1752407463814,-849.15,0.00021095,2]
[371734864,1752407463824,-500.48,0.00021095,2]
[371734865,1752407463834,-700.08,0.00021095,2]
[371734866,1752407463843,-460.0,0.00021095,2]
[371734867,1752407463857,-522.44220023,0.00021095,2]
[371734868,1752407463867,-3031.54,0.00021095,2]
[371734869,1752407463878,-578.13,0.00021095,2]
[371734870,1752407463887,-460.0,0.00021095,2]
[371734871,1752407463898,-540.94,0.00021095,2]
[371734872,1752407463908,-506.52,0.00021095,2]
[371734873,1752407463918,-1316.63,0.00021095,2]
[371734874,1752407463928,-1300.53,0.00021095,2]
[371734875,1752407463938,-671.75,0.00021095,2]
[371734876,1752407463948,-460.0,0.00021095,2]
[371734877,1752407463957,-517.5,0.00021095,2]
[371734878,1752407463967,-1032.53,0.00021095,2]
[371734879,1752407463976,-460.0,0.00021095,2]
[371734880,1752407463987,-748.97,0.00021095,2]
[371734881,1752407463998,-1550.69,0.00021095,2]
[371734882,1752407464008,-833.7,0.00021095,2]
[371734883,1752407464017,-557.0,0.00021115,2]
[371734884,1752407464028,-770.0,0.00021145,2]
[371734885,1752407464038,-557.0,0.00021149,2]
[371734886,1752407464048,-176.654513,0.00021159,2]
[371734887,1752407464058,-151.0,0.00021159,2]
[371734888,1752407464068,-557.0,0.00021161,2]
[371734889,1752407464078,-152.056827,0.00021167,2]
[371734890,1752407464087,-151.0,0.00021167,2]
[371734891,1752407464097,-180.182,0.00021175,2]
[371734892,1752407464109,-202.195,0.00021175,2]
[371734893,1752407464119,-214.674,0.00021175,2]
[371734894,1752407464130,-248.989,0.00021175,2]
[371734895,1752407464140,-249.539,0.00021175,2]
[371734896,1752407464150,-259.666,0.00021175,2]
[371734897,1752407464160,-217.653,0.00021175,2]
[371734898,1752407464170,-151.0,0.00021199,2]
[371734899,1752407464182,-151.0,0.00021199,2]
[371734900,1752407464192,-865.8,0.000212,2]
[371734901,1752407464202,-2650.39,0.000212,2]
[371734902,1752407464213,-4933.13375574,0.0002121,4]
[371734903,1752407464224,-557.0,0.0002125,2]
[371734904,1752407464234,-502.3432928,0.00021327,2]
[371734905,1752407464244,-501.18861077,0.00021327,2]
[371734906,1752407464254,-505.49074743,0.00021327,2]
[371734907,1752407464264,-500.0,0.00021327,2]
[371734908,1752407464274,-151.0,0.00021357,2]
[371734909,1752407464283,-1729.494,0.00021357,2]
[371734910,1752407464293,-407.0,0.00021357,2]
[371734911,1752407464303,-151.0,0.00021369,2]
[371734912,1752407464312,-411.12,0.00021369,2]
[371734913,1752407464322,-352.19,0.00021369,2]
[371734914,1752407464332,-495.85,0.00021369,2]
[371734915,1752407464341,-731.2,0.00021369,2]
[371734916,1752407464353,-714.42,0.00021369,2]
[371734917,1752407464362,-554.02,0.00021369,2]
[371734918,1752407464373,-596.85,0.00021369,2]
[371734919,1752407464382,-460.0,0.00021369,2]
[371734920,1752407464392,-2829.27,0.00021369,2]
[371734921,1752407464402,-2270.21,0.00021369,2]
[371734922,1752407464412,-460.0,0.00021369,2]
[371734923,1752407464422,-587.27,0.00021369,2]
[371734924,1752407464431,-565.36,0.00021369,2]
[371734925,1752407464441,-1536.42,0.00021369,2]
[371734926,1752407464451,-460.0,0.00021369,2]
[371734927,1752407464462,-704.31,0.00021369,2]
[371734928,1752407464472,-489.16,0.00021369,2]
[371734929,1752407464482,-498.33,0.00021369,2]
[371734930,1752407464491,-764.91,0.00021369,2]
[371734931,1752407464501,-2968.39,0.00021369,2]
[371734932,1752407464510,-2262.14,0.00021369,2]
[371734933,1752407464519,-548.88,0.00021369,2]
[371734934,1752407464528,-1309.92,0.00021369,2]
[371734935,1752407464539,-955.79,0.00021369,2]
[371734936,1752407464549,-1127.57,0.00021369,2]
[371734937,1752407464558,-849.15,0.00021369,2]
[371734938,1752407464567,-500.48,0.00021369,2]
[371734939,1752407464577,-700.08,0.00021369,2]
[371734940,1752407464587,-479.66,0.00021369,2]
[371734941,1752407464596,-3031.54,0.00021369,2]
[371734942,1752407464606,-578.13,0.00021369,2]
[371734943,1752407464616,-460.0,0.00021369,2]
[371734944,1752407464626,-540.94,0.00021369,2]
[371734945,1752407464728,-506.52,0.00021369,2]
[371734946,1752407464739,-1316.63,0.00021369,2]
[371734947,1752407464749,-1300.53,0.00021369,2]
[371734948,1752407464759,-671.75,0.00021369,2]
[371734949,1752407464769,-460.0,0.00021369,2]
[371734950,1752407464779,-517.5,0.00021369,2]
[371734951,1752407464789,-1032.53,0.00021369,2]
[371734952,1752407464798,-460.0,0.00021369,2]
[371734953,1752407464808,-748.97,0.00021369,2]
[371734954,1752407464817,-1550.69,0.00021369,2]
[371734955,1752407464827,-833.7,0.00021369,2]
[371734956,1752407464836,-500.0,0.00021373,2]
[371734957,1752407464846,-151.0,0.00021385,2]
[371734958,1752407464859,-557.0,0.00021385,2]
[371734959,1752407464868,-246.529174,0.00021391,2]
[371734960,1752407464878,-246.529174,0.00021391,2]
[371734961,1752407464888,-180.0,0.00021405,2]
[371734962,1752407464899,-557.0,0.00021411,2]
[371734963,1752407464909,-823.0,0.00021454,2]
[371734964,1752407464918,-4933.13375574,0.00021486,5]
[371734965,1752407464929,-557.0,0.00021536,2]
[371734966,1752407464939,-557.0,0.0002154,2]
[371734967,1752407464948,-257.716072,0.00021553,2]
[371734968,1752407464958,-151.0,0.00021553,2]
[371734969,1752407464968,-274.835429,0.00021553,2]
[371734970,1752407464977,-274.835429,0.00021553,2]
[371734971,1752407464987,-151.0,0.00021578,2]
[371734972,1752407464997,-557.0,0.00021597,2]
[371734973,1752407465006,-154.818985,0.000216,3]
[371734974,1752407465015,-1300.0,0.00021612,2]
[371734975,1752407465025,-557.0,0.00021626,2]
[371734976,1752407465035,-557.0,0.00021626,2]
[371734977,1752407465045,-320.921408,0.00021643,2]
[371734978,1752407465055,-320.921408,0.00021643,2]
[371734979,1752407465065,-495.85,0.00021643,2]
[371734980,1752407465074,-731.2,0.00021643,2]
[371734981,1752407465084,-714.42,0.00021643,2]
[371734982,1752407465094,-554.02,0.00021643,2]
[371734983,1752407465104,-596.85,0.00021643,2]
[371734984,1752407465115,-460.0,0.00021643,2]
[371734985,1752407465124,-2829.27,0.00021643,2]
[371734986,1752407465136,-2270.21,0.00021643,2]
[371734987,1752407465147,-460.0,0.00021643,2]
[371734988,1752407465157,-587.27,0.00021643,2]
[371734989,1752407465168,-565.36,0.00021643,2]
[371734990,1752407465177,-1536.42,0.00021643,2]
[371734991,1752407465188,-517.48,0.00021643,2]
[371734992,1752407465198,-489.16,0.00021643,2]
[371734993,1752407465207,-704.31,0.00021643,2]
[371734994,1752407465219,-498.33,0.00021643,2]
[371734995,1752407465229,-764.91,0.00021643,2]
[371734996,1752407465238,-2968.39,0.00021643,2]
[371734997,1752407465248,-2262.14,0.00021643,2]
[371734998,1752407465258,-548.88,0.00021643,2]
[371734999,1752407465267,-1309.92,0.00021643,2]
[371735000,1752407465277,-955.79,0.00021643,2]
[371735001,1752407465287,-1127.57,0.00021643,2]
[371735002,1752407465297,-849.15,0.00021643,2]
[371735003,1752407465307,-500.48,0.00021643,2]
[371735004,1752407465316,-700.08,0.00021643,2]
[371735005,1752407465326,-3031.54,0.00021643,2]
[371735006,1752407465335,-578.13,0.00021643,2]
[371735007,1752407465344,-212.92219118,0.00021643,2]
[371735008,1752407465354,-540.94,0.00021643,2]
[371735009,1752407465364,-506.52,0.00021643,2]
[371735010,1752407465374,-1316.63,0.00021643,2]
[371735011,1752407465384,-1300.53,0.00021643,2]
[371735012,1752407465394,-671.75,0.00021643,2]
[371735013,1752407465405,-517.5,0.00021643,2]
[371735014,1752407465416,-460.0,0.00021643,2]
[371735015,1752407465426,-1032.53,0.00021643,2]
[371735016,1752407465436,-748.97,0.00021643,2]
[371735017,1752407465446,-1550.69,0.00021643,2]
[371735018,1752407465457,-833.7,0.00021643,2]
[371735019,1752407465468,-154.818985,0.00021732,6]
[371735020,1752407465478,-214.956284,0.00021762,2]
[371735021,1752407465490,-4933.13375574,0.00021762,5]
[371735022,1752407465500,-275.434605,0.000218,2]
[371735023,1752407465511,-275.434605,0.000218,2]
[371735024,1752407465521,-590.40244496,0.00021875,2]
[371735025,1752407465531,-151.0,0.00021917,2]
[371735026,1752407465540,-495.85,0.00021917,2]
[371735027,1752407465550,-151.0,0.00021917,2]
[371735028,1752407465559,-731.2,0.00021917,2]
[371735029,1752407465569,-714.42,0.00021917,2]
[371735030,1752407465579,-554.02,0.00021917,2]
[371735031,1752407465588,-596.85,0.00021917,2]
[371735032,1752407465598,-460.0,0.00021917,2]
[371735033,1752407465608,-2829.27,0.00021917,2]
[371735034,1752407465618,-2270.21,0.00021917,2]
[371735035,1752407465628,-495.55339422,0.00021917,2]
[371735036,1752407465637,-587.27,0.00021917,2]
[371735037,1752407465648,-565.36,0.00021917,2]
[371735038,1752407465657,-1536.42,0.00021917,2]
[371735039,1752407465667,-489.16,0.00021917,2]
[371735040,1752407465677,-704.31,0.00021917,2]
[371735041,1752407465687,-498.33,0.00021917,2]
[371735042,1752407465697,-764.91,0.00021917,2]
[371735043,1752407465706,-2968.39,0.00021917,2]
[371735044,1752407465715,-2262.14,0.00021917,2]
[371735045,1752407465725,-548.88,0.00021917,2]
[371735046,1752407465734,-1309.92,0.00021917,2]
[371735047,1752407465744,-955.79,0.00021917,2]
[371735048,1752407465754,-1127.57,0.00021917,2]
[371735049,1752407465763,-849.15,0.00021917,2]
[371735050,1752407465773,-500.48,0.00021917,2]
[371735051,1752407465783,-700.08,0.00021917,2]
[371735052,1752407465792,-3031.54,0.00021917,2]
[371735053,1752407465802,-578.13,0.00021917,2]
[371735054,1752407465811,-540.94,0.00021917,2]
[371735055,1752407465821,-506.52,0.00021917,2]
[371735056,1752407465831,-1316.63,0.00021917,2]
[371735057,1752407465840,-1300.53,0.00021917,2]
[371735058,1752407465853,-671.75,0.00021917,2]
[371735059,1752407465862,-517.5,0.00021917,2]
[371735060,1752407465871,-244.26,0.00021917,2]
[371735061,1752407465881,-1032.53,0.00021917,2]
[371735062,1752407465892,-748.97,0.00021917,2]
[371735063,1752407465901,-1550.69,0.00021917,2]
[371735064,1752407465911,-833.7,0.00021917,2]
[371735065,1752407465921,-500.0,0.00021921,2]
[371735066,1752407465931,-180.25596347,0.00021938,2]
[371735067,1752407465941,-171.0,0.00022,2]
[371735068,1752407465953,-1000.0,0.00022009,5]
[371735069,1752407465964,-4933.13375574,0.00022038,6]
[371735070,1752407465975,-154.818985,0.0002205,7]
[371735071,1752407465984,-17379.31,0.000221,2]
[371735072,1752407465994,-173.569706,0.0002217,7]
[371735073,1752407466004,-2323.109,0.0002217,2]
[371735074,1752407466013,-151.0,0.00022191,7]
[371735075,1752407466024,-151.0,0.00022191,7]
[371735076,1752407466033,-495.85,0.00022191,2]
[371735077,1752407466043,-201.251957,0.00022191,7]
[371735078,1752407466052,-201.251957,0.00022191,7]
[371735079,1752407466062,-731.2,0.00022191,2]
[371735080,1752407466071,-714.42,0.00022191,2]
[371735081,1752407466081,-554.02,0.00022191,2]
[371735082,1752407466091,-596.85,0.00022191,2]
[371735083,1752407466101,-460.0,0.00022191,2]
[371735084,1752407466110,-2829.27,0.00022191,2]
[371735085,1752407466120,-2270.21,0.00022191,2]
[371735086,1752407466130,-587.27,0.00022191,2]
[371735087,1752407466139,-565.36,0.00022191,2]
[371735088,1752407466150,-1536.42,0.00022191,2]
[371735089,1752407466159,-489.16,0.00022191,2]
[371735090,1752407466168,-704.31,0.00022191,2]
[371735091,1752407466178,-498.33,0.00022191,2]
[371735092,1752407466188,-764.91,0.00022191,2]
[371735093,1752407466275,-2968.39,0.00022191,2]
[371735094,1752407466287,-2262.14,0.00022191,2]
[371735095,1752407466297,-548.88,0.00022191,2]
[371735096,1752407466307,-1309.92,0.00022191,2]
[371735097,1752407466317,-955.79,0.00022191,2]
[371735098,1752407466327,-1127.57,0.00022191,2]
[371735099,1752407466337,-849.15,0.00022191,2]
[371735100,1752407466348,-500.48,0.00022191,2]
[371735101,1752407466357,-700.08,0.00022191,2]